Workbook

Sheet 結婚式の予算
B2: KAYLA + JACOB 結婚します
B5: カテゴリ | C5: 見積コスト | D5: 実績費用 | E5: 差額 | F5: 予算に対する割合 (%) | J5: 並べ替えなし | K5: 見積もりコスト​​ | L5: 実際のコスト | M5: 見積もりコスト​​ - 順位値 | N5: 順位 | O5: # | P5: 並べ替え済み
B6: =P6 -> 披露宴 | C6: =VLOOKUP(TBL_Summary[[#This Row],[カテゴリ]],TBL_RankingData,2,FALSE) -> ¥14,500 | D6: =IF(VLOOKUP(TBL_Summary[[#This Row],[カテゴリ]],TBL_RankingData,3,FALSE)=0,"",VLOOKUP(TBL_Summary[[#This Row],[カテゴリ]],TBL_RankingData,3,FALSE)) -> ¥12,800 | E6: =IF(OR(TBL_Summary[[#This Row],[見積コスト]]="",TBL_Summary[[#This Row],[実績費用]]=""),"",TBL_Summary[[#This Row],[見積コスト]]-TBL_Summary[[#This Row],[実績費用]]) -> ¥1,700 | F6: =TBL_Summary[[#This Row],[見積コスト]]/SUM(TBL_Summary[見積コスト]) -> 48.7% | J6: 披露宴 | K6: =TBL_Reception[[#Totals],[見積もり]] -> 14500 | L6: =TBL_Reception[[#Totals],[実績]] -> 12800 | M6: =K6-O6/100 -> 14499.99 | N6: =_xlfn.RANK.AVG(M6,$M$6:$M$15) -> 1 | O6: 1 | P6: =INDEX(TBL_RankingData,MATCH(O6,$N$6:$N$15,0),1) -> 披露宴
B7: =P7 -> 衣装 | C7: =VLOOKUP(TBL_Summary[[#This Row],[カテゴリ]],TBL_RankingData,2,FALSE) -> ¥4,000 | D7: =IF(VLOOKUP(TBL_Summary[[#This Row],[カテゴリ]],TBL_RankingData,3,FALSE)=0,"",VLOOKUP(TBL_Summary[[#This Row],[カテゴリ]],TBL_RankingData,3,FALSE)) -> ¥2,900 | E7: =IF(OR(TBL_Summary[[#This Row],[見積コスト]]="",TBL_Summary[[#This Row],[実績費用]]=""),"",TBL_Summary[[#This Row],[見積コスト]]-TBL_Summary[[#This Row],[実績費用]]) -> ¥1,100 | F7: =TBL_Summary[[#This Row],[見積コスト]]/SUM(TBL_Summary[見積コスト]) -> 13.4% | J7: 衣装 | K7: =TBL_Attire[[#Totals],[見積もり]] -> 4000 | L7: =TBL_Attire[[#Totals],[実績]] -> 2900 | M7: =K7-O7/100 -> 3999.98 | N7: 2 | O7: 2 | P7: 衣装
B8: 花および装飾 | C8: =VLOOKUP(TBL_Summary[[#This Row],[カテゴリ]],TBL_RankingData,2,FALSE) -> ¥3,000 | D8: =IF(VLOOKUP(TBL_Summary[[#This Row],[カテゴリ]],TBL_RankingData,3,FALSE)=0,"",VLOOKUP(TBL_Summary[[#This Row],[カテゴリ]],TBL_RankingData,3,FALSE)) ->  | E8: =IF(OR(TBL_Summary[[#This Row],[見積コスト]]="",TBL_Summary[[#This Row],[実績費用]]=""),"",TBL_Summary[[#This Row],[見積コスト]]-TBL_Summary[[#This Row],[実績費用]]) ->  | F8: =TBL_Summary[[#This Row],[見積コスト]]/SUM(TBL_Summary[見積コスト]) -> 10.1% | J8: 花および装飾 | K8: =TBL_FlowersAndDecor[[#Totals],[見積もり]] -> 3000 | L8: =TBL_FlowersAndDecor[[#Totals],[実績]] -> 0 | M8: 2999.97 | N8: 3 | O8: 3 | P8: 花および装飾
B9: 写真およびビデオ | C9: =VLOOKUP(TBL_Summary[[#This Row],[カテゴリ]],TBL_RankingData,2,FALSE) -> ¥2,500 | D9: =IF(VLOOKUP(TBL_Summary[[#This Row],[カテゴリ]],TBL_RankingData,3,FALSE)=0,"",VLOOKUP(TBL_Summary[[#This Row],[カテゴリ]],TBL_RankingData,3,FALSE)) ->  | E9: =IF(OR(TBL_Summary[[#This Row],[見積コスト]]="",TBL_Summary[[#This Row],[実績費用]]=""),"",TBL_Summary[[#This Row],[見積コスト]]-TBL_Summary[[#This Row],[実績費用]]) ->  | F9: =TBL_Summary[[#This Row],[見積コスト]]/SUM(TBL_Summary[見積コスト]) -> 8.4% | J9: ミュージック | K9: =TBL_Music[[#Totals],[見積もり]] -> 1800 | L9: =TBL_Music[[#Totals],[実績]] -> 0 | M9: 1799.96 | N9: 5 | O9: 4 | P9: 写真およびビデオ
B10: ミュージック | C10: =VLOOKUP(TBL_Summary[[#This Row],[カテゴリ]],TBL_RankingData,2,FALSE) -> ¥1,800 | D10: =IF(VLOOKUP(TBL_Summary[[#This Row],[カテゴリ]],TBL_RankingData,3,FALSE)=0,"",VLOOKUP(TBL_Summary[[#This Row],[カテゴリ]],TBL_RankingData,3,FALSE)) ->  | E10: =IF(OR(TBL_Summary[[#This Row],[見積コスト]]="",TBL_Summary[[#This Row],[実績費用]]=""),"",TBL_Summary[[#This Row],[見積コスト]]-TBL_Summary[[#This Row],[実績費用]]) ->  | F10: =TBL_Summary[[#This Row],[見積コスト]]/SUM(TBL_Summary[見積コスト]) -> 6.1% | J10: 写真およびビデオ | K10: =TBL_PhotographsAndVideo[[#Totals],[見積もり]] -> 2500 | L10: =TBL_PhotographsAndVideo[[#Totals],[実績]] -> 0 | M10: 2499.95 | N10: 4 | O10: 5 | P10: ミュージック
B11: 記念品およびプレゼント | C11: =VLOOKUP(TBL_Summary[[#This Row],[カテゴリ]],TBL_RankingData,2,FALSE) -> ¥1,100 | D11: =IF(VLOOKUP(TBL_Summary[[#This Row],[カテゴリ]],TBL_RankingData,3,FALSE)=0,"",VLOOKUP(TBL_Summary[[#This Row],[カテゴリ]],TBL_RankingData,3,FALSE)) ->  | E11: =IF(OR(TBL_Summary[[#This Row],[見積コスト]]="",TBL_Summary[[#This Row],[実績費用]]=""),"",TBL_Summary[[#This Row],[見積コスト]]-TBL_Summary[[#This Row],[実績費用]]) ->  | F11: =TBL_Summary[[#This Row],[見積コスト]]/SUM(TBL_Summary[見積コスト]) -> 3.7% | J11: 記念品およびプレゼント | K11: =TBL_FavorsAndGifts[[#Totals],[見積もり]] -> 1100 | L11: =TBL_FavorsAndGifts[[#Totals],[実績]] -> 0 | M11: 1099.94 | N11: 6 | O11: 6 | P11: 記念品およびプレゼント
B12: =P12 -> 結婚指輪 | C12: =VLOOKUP(TBL_Summary[[#This Row],[カテゴリ]],TBL_RankingData,2,FALSE) -> ¥1,100 | D12: =IF(VLOOKUP(TBL_Summary[[#This Row],[カテゴリ]],TBL_RankingData,3,FALSE)=0,"",VLOOKUP(TBL_Summary[[#This Row],[カテゴリ]],TBL_RankingData,3,FALSE)) ->  | E12: =IF(OR(TBL_Summary[[#This Row],[見積コスト]]="",TBL_Summary[[#This Row],[実績費用]]=""),"",TBL_Summary[[#This Row],[見積コスト]]-TBL_Summary[[#This Row],[実績費用]]) ->  | F12: =TBL_Summary[[#This Row],[見積コスト]]/SUM(TBL_Summary[見積コスト]) -> 3.7% | J12: 式 | K12: =TBL_Ceremony[[#Totals],[見積もり]] -> 800 | L12: =TBL_Ceremony[[#Totals],[実績]] -> 0 | M12: 799.93 | N12: 8 | O12: 7 | P12: 結婚指輪
B13: 式 | C13: =VLOOKUP(TBL_Summary[[#This Row],[カテゴリ]],TBL_RankingData,2,FALSE) -> ¥800 | D13: =IF(VLOOKUP(TBL_Summary[[#This Row],[カテゴリ]],TBL_RankingData,3,FALSE)=0,"",VLOOKUP(TBL_Summary[[#This Row],[カテゴリ]],TBL_RankingData,3,FALSE)) ->  | E13: =IF(OR(TBL_Summary[[#This Row],[見積コスト]]="",TBL_Summary[[#This Row],[実績費用]]=""),"",TBL_Summary[[#This Row],[見積コスト]]-TBL_Summary[[#This Row],[実績費用]]) ->  | F13: =TBL_Summary[[#This Row],[見積コスト]]/SUM(TBL_Summary[見積コスト]) -> 2.7% | J13: ステーショナリー | K13: =TBL_Stationery[[#Totals],[見積もり]] -> 500 | L13: =TBL_Stationery[[#Totals],[実績]] -> 0 | M13: 499.92 | N13: 9 | O13: 8 | P13: 式
B14: ステーショナリー | C14: =VLOOKUP(TBL_Summary[[#This Row],[カテゴリ]],TBL_RankingData,2,FALSE) -> ¥500 | D14: =IF(VLOOKUP(TBL_Summary[[#This Row],[カテゴリ]],TBL_RankingData,3,FALSE)=0,"",VLOOKUP(TBL_Summary[[#This Row],[カテゴリ]],TBL_RankingData,3,FALSE)) ->  | E14: =IF(OR(TBL_Summary[[#This Row],[見積コスト]]="",TBL_Summary[[#This Row],[実績費用]]=""),"",TBL_Summary[[#This Row],[見積コスト]]-TBL_Summary[[#This Row],[実績費用]]) ->  | F14: =TBL_Summary[[#This Row],[見積コスト]]/SUM(TBL_Summary[見積コスト]) -> 1.7% | J14: 結婚指輪 | K14: =TBL_WeddingRings[[#Totals],[見積もり]] -> 1100 | L14: =TBL_WeddingRings[[#Totals],[実績]] -> 0 | M14: 1099.91 | N14: 7 | O14: 9 | P14: ステーショナリー
B15: 交通費 | C15: =VLOOKUP(TBL_Summary[[#This Row],[カテゴリ]],TBL_RankingData,2,FALSE) -> ¥450 | D15: =IF(VLOOKUP(TBL_Summary[[#This Row],[カテゴリ]],TBL_RankingData,3,FALSE)=0,"",VLOOKUP(TBL_Summary[[#This Row],[カテゴリ]],TBL_RankingData,3,FALSE)) ->  | E15: =IF(OR(TBL_Summary[[#This Row],[見積コスト]]="",TBL_Summary[[#This Row],[実績費用]]=""),"",TBL_Summary[[#This Row],[見積コスト]]-TBL_Summary[[#This Row],[実績費用]]) ->  | F15: =TBL_Summary[[#This Row],[見積コスト]]/SUM(TBL_Summary[見積コスト]) -> 1.5% | J15: 交通費 | K15: =TBL_Transportation[[#Totals],[見積もり]] -> 450 | L15: =TBL_Transportation[[#Totals],[実績]] -> 0 | M15: 449.9 | N15: 10 | O15: 10 | P15: 交通費
B16: 集計 | C16: =SUBTOTAL(109,TBL_Summary[見積コスト]) -> ¥29,750 | D16: =SUBTOTAL(109,TBL_Summary[実績費用]) -> ¥15,700 | E16: =TBL_Summary[[#Totals],[見積コスト]]-TBL_Summary[[#Totals],[実績費用]] -> ¥14,050 | F16: =SUBTOTAL(109,TBL_Summary[予算に対する割合 (%)]) -> 100%

Sheet 予算の詳細
B2: 予算の詳細
B4: 披露宴 | C4: 見積もり | D4: 実績 | E4: 差額
B5: 会場およびレンタル | C5: ¥8,000.00 | D5: ¥7,800.00 | E5: =IF(OR(TBL_Reception[[#This Row],[見積もり]]="",TBL_Reception[[#This Row],[実績]]=""),"",TBL_Reception[[#This Row],[見積もり]]-TBL_Reception[[#This Row],[実績]]) -> ¥200.00
B6: 食品およびサービス | C6: ¥4,000.00 | D6: ¥4,200.00 | E6: =IF(OR(TBL_Reception[[#This Row],[見積もり]]="",TBL_Reception[[#This Row],[実績]]=""),"",TBL_Reception[[#This Row],[見積もり]]-TBL_Reception[[#This Row],[実績]]) -> (¥200.00)
B7: 飲み物 | C7: ¥1,000.00 | D7: ¥800.00 | E7: =IF(OR(TBL_Reception[[#This Row],[見積もり]]="",TBL_Reception[[#This Row],[実績]]=""),"",TBL_Reception[[#This Row],[見積もり]]-TBL_Reception[[#This Row],[実績]]) -> ¥200.00
B8: ケーキ | C8: ¥1,000.00 | E8: =IF(OR(TBL_Reception[[#This Row],[見積もり]]="",TBL_Reception[[#This Row],[実績]]=""),"",TBL_Reception[[#This Row],[見積もり]]-TBL_Reception[[#This Row],[実績]]) -> 
B9: 雑費 | C9: ¥500.00 | E9: =IF(OR(TBL_Reception[[#This Row],[見積もり]]="",TBL_Reception[[#This Row],[実績]]=""),"",TBL_Reception[[#This Row],[見積もり]]-TBL_Reception[[#This Row],[実績]]) -> 
B10: 披露宴合計 | C10: =SUBTOTAL(109,TBL_Reception[見積もり]) -> ¥14,500.00 | D10: =SUBTOTAL(109,TBL_Reception[実績]) -> ¥12,800.00 | E10: =TBL_Reception[[#Totals],[見積もり]]-TBL_Reception[[#Totals],[実績]] -> ¥1,700.00
B13: 衣装 | C13: 見積もり | D13: 実績 | E13: 差額
B14: タキシード、スーツ、および/またはドレス | C14: ¥3,000.00 | D14: ¥2,900.00 | E14: =IF(OR(TBL_Attire[[#This Row],[見積もり]]="",TBL_Attire[[#This Row],[実績]]=""),"",TBL_Attire[[#This Row],[見積もり]]-TBL_Attire[[#This Row],[実績]]) -> ¥100.00
B15: 寸法直し | C15: ¥100.00 | E15: =IF(OR(TBL_Attire[[#This Row],[見積もり]]="",TBL_Attire[[#This Row],[実績]]=""),"",TBL_Attire[[#This Row],[見積もり]]-TBL_Attire[[#This Row],[実績]]) -> 
B16: ティアラおよびベール | C16: ¥200.00 | E16: =IF(OR(TBL_Attire[[#This Row],[見積もり]]="",TBL_Attire[[#This Row],[実績]]=""),"",TBL_Attire[[#This Row],[見積もり]]-TBL_Attire[[#This Row],[実績]]) -> 
B17: 付属品 | C17: ¥100.00 | E17: =IF(OR(TBL_Attire[[#This Row],[見積もり]]="",TBL_Attire[[#This Row],[実績]]=""),"",TBL_Attire[[#This Row],[見積もり]]-TBL_Attire[[#This Row],[実績]]) -> 
B18: 髪およびメイク | C18: ¥500.00 | E18: =IF(OR(TBL_Attire[[#This Row],[見積もり]]="",TBL_Attire[[#This Row],[実績]]=""),"",TBL_Attire[[#This Row],[見積もり]]-TBL_Attire[[#This Row],[実績]]) -> 
B19: 雑費 | C19: ¥100.00 | E19: =IF(OR(TBL_Attire[[#This Row],[見積もり]]="",TBL_Attire[[#This Row],[実績]]=""),"",TBL_Attire[[#This Row],[見積もり]]-TBL_Attire[[#This Row],[実績]]) -> 
B20: 衣装の合計 | C20: =SUBTOTAL(109,TBL_Attire[見積もり]) -> ¥4,000.00 | D20: =SUBTOTAL(109,TBL_Attire[実績]) -> ¥2,900.00 | E20: =TBL_Attire[[#Totals],[見積もり]]-TBL_Attire[[#Totals],[実績]] -> ¥1,100.00
B23: 花および装飾 | C23: 見積もり | D23: 実績 | E23: 差額
B24: 式用の生け花 | C24: ¥1,000.00 | E24: =IF(OR(TBL_FlowersAndDecor[[#This Row],[見積もり]]="",TBL_FlowersAndDecor[[#This Row],[実績]]=""),"",TBL_FlowersAndDecor[[#This Row],[見積もり]]-TBL_FlowersAndDecor[[#This Row],[実績]]) -> 
B25: フラワー ガールの花およびバスケット | C25: ¥500.00 | E25: =IF(OR(TBL_FlowersAndDecor[[#This Row],[見積もり]]="",TBL_FlowersAndDecor[[#This Row],[実績]]=""),"",TBL_FlowersAndDecor[[#This Row],[見積もり]]-TBL_FlowersAndDecor[[#This Row],[実績]]) -> 
B26: リングピロー | C26: ¥100.00 | E26: =IF(OR(TBL_FlowersAndDecor[[#This Row],[見積もり]]="",TBL_FlowersAndDecor[[#This Row],[実績]]=""),"",TBL_FlowersAndDecor[[#This Row],[見積もり]]-TBL_FlowersAndDecor[[#This Row],[実績]]) -> 
B27: ブーケ | C27: ¥500.00 | E27: =IF(OR(TBL_FlowersAndDecor[[#This Row],[見積もり]]="",TBL_FlowersAndDecor[[#This Row],[実績]]=""),"",TBL_FlowersAndDecor[[#This Row],[見積もり]]-TBL_FlowersAndDecor[[#This Row],[実績]]) -> 
B28: ブートニエール | C28: ¥100.00 | E28: =IF(OR(TBL_FlowersAndDecor[[#This Row],[見積もり]]="",TBL_FlowersAndDecor[[#This Row],[実績]]=""),"",TBL_FlowersAndDecor[[#This Row],[見積もり]]-TBL_FlowersAndDecor[[#This Row],[実績]]) -> 
B29: コサージュ | C29: ¥200.00 | E29: =IF(OR(TBL_FlowersAndDecor[[#This Row],[見積もり]]="",TBL_FlowersAndDecor[[#This Row],[実績]]=""),"",TBL_FlowersAndDecor[[#This Row],[見積もり]]-TBL_FlowersAndDecor[[#This Row],[実績]]) -> 
B30: 披露宴の装飾 | C30: ¥300.00 | E30: =IF(OR(TBL_FlowersAndDecor[[#This Row],[見積もり]]="",TBL_FlowersAndDecor[[#This Row],[実績]]=""),"",TBL_FlowersAndDecor[[#This Row],[見積もり]]-TBL_FlowersAndDecor[[#This Row],[実績]]) -> 
B31: 照明 | C31: ¥200.00 | E31: =IF(OR(TBL_FlowersAndDecor[[#This Row],[見積もり]]="",TBL_FlowersAndDecor[[#This Row],[実績]]=""),"",TBL_FlowersAndDecor[[#This Row],[見積もり]]-TBL_FlowersAndDecor[[#This Row],[実績]]) -> 
B32: 雑費 | C32: ¥100.00 | E32: =IF(OR(TBL_FlowersAndDecor[[#This Row],[見積もり]]="",TBL_FlowersAndDecor[[#This Row],[実績]]=""),"",TBL_FlowersAndDecor[[#This Row],[見積もり]]-TBL_FlowersAndDecor[[#This Row],[実績]]) -> 
B33: 花および装飾の合計 | C33: =SUBTOTAL(109,TBL_FlowersAndDecor[見積もり]) -> ¥3,000.00 | D33: =SUBTOTAL(109,TBL_FlowersAndDecor[実績]) -> ¥0.00 | E33: =TBL_FlowersAndDecor[[#Totals],[見積もり]]-TBL_FlowersAndDecor[[#Totals],[実績]] -> ¥3,000.00
B36: 音楽 | C36: 見積もり | D36: 実績 | E36: 差額
B37: 式の演奏者 | C37: ¥700.00 | E37: =IF(OR(TBL_Music[[#This Row],[見積もり]]="",TBL_Music[[#This Row],[実績]]=""),"",TBL_Music[[#This Row],[見積もり]]-TBL_Music[[#This Row],[実績]]) -> 
B38: カクテルアワーの演奏者 | C38: ¥300.00 | E38: =IF(OR(TBL_Music[[#This Row],[見積もり]]="",TBL_Music[[#This Row],[実績]]=""),"",TBL_Music[[#This Row],[見積もり]]-TBL_Music[[#This Row],[実績]]) -> 
B39: 披露宴のバンド、ディージェー、またはエンターテイメント | C39: ¥200.00 | E39: =IF(OR(TBL_Music[[#This Row],[見積もり]]="",TBL_Music[[#This Row],[実績]]=""),"",TBL_Music[[#This Row],[見積もり]]-TBL_Music[[#This Row],[実績]]) -> 
B40: サウンド システムまたはダンス フロアのレンタル | C40: ¥400.00 | E40: =IF(OR(TBL_Music[[#This Row],[見積もり]]="",TBL_Music[[#This Row],[実績]]=""),"",TBL_Music[[#This Row],[見積もり]]-TBL_Music[[#This Row],[実績]]) -> 
B41: 雑費 | C41: ¥200.00 | E41: =IF(OR(TBL_Music[[#This Row],[見積もり]]="",TBL_Music[[#This Row],[実績]]=""),"",TBL_Music[[#This Row],[見積もり]]-TBL_Music[[#This Row],[実績]]) -> 
B42: 音楽の合計 | C42: =SUBTOTAL(109,TBL_Music[見積もり]) -> ¥1,800.00 | D42: =SUBTOTAL(109,TBL_Music[実績]) -> ¥0.00 | E42: =TBL_Music[[#Totals],[見積もり]]-TBL_Music[[#Totals],[実績]] -> ¥1,800.00
B45: 写真およびビデオ | C45: 見積もり | D45: 実績 | E45: 差額
B46: 写真 | C46: ¥1,000.00 | E46: =IF(OR(TBL_PhotographsAndVideo[[#This Row],[見積もり]]="",TBL_PhotographsAndVideo[[#This Row],[実績]]=""),"",TBL_PhotographsAndVideo[[#This Row],[見積もり]]-TBL_PhotographsAndVideo[[#This Row],[実績]]) -> 
B47: ビデオ撮影 | C47: ¥800.00 | E47: =IF(OR(TBL_PhotographsAndVideo[[#This Row],[見積もり]]="",TBL_PhotographsAndVideo[[#This Row],[実績]]=""),"",TBL_PhotographsAndVideo[[#This Row],[見積もり]]-TBL_PhotographsAndVideo[[#This Row],[実績]]) -> 
B48: 追加の印刷物とアルバム | C48: ¥500.00 | E48: =IF(OR(TBL_PhotographsAndVideo[[#This Row],[見積もり]]="",TBL_PhotographsAndVideo[[#This Row],[実績]]=""),"",TBL_PhotographsAndVideo[[#This Row],[見積もり]]-TBL_PhotographsAndVideo[[#This Row],[実績]]) -> 
B49: 雑費 | C49: ¥200.00 | E49: =IF(OR(TBL_PhotographsAndVideo[[#This Row],[見積もり]]="",TBL_PhotographsAndVideo[[#This Row],[実績]]=""),"",TBL_PhotographsAndVideo[[#This Row],[見積もり]]-TBL_PhotographsAndVideo[[#This Row],[実績]]) -> 
B50: 写真およびビデオの合計 | C50: =SUBTOTAL(109,TBL_PhotographsAndVideo[見積もり]) -> ¥2,500.00 | D50: =SUBTOTAL(109,TBL_PhotographsAndVideo[実績]) -> ¥0.00 | E50: =TBL_PhotographsAndVideo[[#Totals],[見積もり]]-TBL_PhotographsAndVideo[[#Totals],[実績]] -> ¥2,500.00
B53: 記念品および贈り物 | C53: 見積もり | D53: 実績 | E53: 差額
B54: ウェルカム ギフト | C54: ¥700.00 | E54: =IF(OR(TBL_FavorsAndGifts[[#This Row],[見積もり]]="",TBL_FavorsAndGifts[[#This Row],[実績]]=""),"",TBL_FavorsAndGifts[[#This Row],[見積もり]]-TBL_FavorsAndGifts[[#This Row],[実績]]) -> 
B55: パーティーギフト | C55: ¥200.00 | E55: =IF(OR(TBL_FavorsAndGifts[[#This Row],[見積もり]]="",TBL_FavorsAndGifts[[#This Row],[実績]]=""),"",TBL_FavorsAndGifts[[#This Row],[見積もり]]-TBL_FavorsAndGifts[[#This Row],[実績]]) -> 
B56: 雑費 | C56: ¥200.00 | E56: =IF(OR(TBL_FavorsAndGifts[[#This Row],[見積もり]]="",TBL_FavorsAndGifts[[#This Row],[実績]]=""),"",TBL_FavorsAndGifts[[#This Row],[見積もり]]-TBL_FavorsAndGifts[[#This Row],[実績]]) -> 
B57: 記念品および贈り物の合計 | C57: =SUBTOTAL(109,TBL_FavorsAndGifts[見積もり]) -> ¥1,100.00 | D57: =SUBTOTAL(109,TBL_FavorsAndGifts[実績]) -> ¥0.00 | E57: =TBL_FavorsAndGifts[[#Totals],[見積もり]]-TBL_FavorsAndGifts[[#Totals],[実績]] -> ¥1,100.00
B60: 式 | C60: 見積もり | D60: 実績 | E60: 差額
B61: サイト料金 | C61: ¥500.00 | E61: =IF(OR(TBL_Ceremony[[#This Row],[見積もり]]="",TBL_Ceremony[[#This Row],[実績]]=""),"",TBL_Ceremony[[#This Row],[見積もり]]-TBL_Ceremony[[#This Row],[実績]]) -> 
B62: 司式者の料金または教会寄付 | C62: ¥200.00 | E62: =IF(OR(TBL_Ceremony[[#This Row],[見積もり]]="",TBL_Ceremony[[#This Row],[実績]]=""),"",TBL_Ceremony[[#This Row],[見積もり]]-TBL_Ceremony[[#This Row],[実績]]) -> 
B63: 雑費 | C63: ¥100.00 | E63: =IF(OR(TBL_Ceremony[[#This Row],[見積もり]]="",TBL_Ceremony[[#This Row],[実績]]=""),"",TBL_Ceremony[[#This Row],[見積もり]]-TBL_Ceremony[[#This Row],[実績]]) -> 
B64: 式の合計 | C64: =SUBTOTAL(109,TBL_Ceremony[見積もり]) -> ¥800.00 | D64: =SUBTOTAL(109,TBL_Ceremony[実績]) -> ¥0.00 | E64: =TBL_Ceremony[[#Totals],[見積もり]]-TBL_Ceremony[[#Totals],[実績]] -> ¥800.00
B67: 文房具 | C67: 見積もり | D67: 実績 | E67: 差額
B68: セーブ ザ デート カード | C68: ¥50.00 | E68: =IF(OR(TBL_Stationery[[#This Row],[見積もり]]="",TBL_Stationery[[#This Row],[実績]]=""),"",TBL_Stationery[[#This Row],[見積もり]]-TBL_Stationery[[#This Row],[実績]]) -> 
B69: 招待状および出欠確認 | C69: ¥100.00 | E69: =IF(OR(TBL_Stationery[[#This Row],[見積もり]]="",TBL_Stationery[[#This Row],[実績]]=""),"",TBL_Stationery[[#This Row],[見積もり]]-TBL_Stationery[[#This Row],[実績]]) -> 
B70: プログラム | C70: ¥50.00 | E70: =IF(OR(TBL_Stationery[[#This Row],[見積もり]]="",TBL_Stationery[[#This Row],[実績]]=""),"",TBL_Stationery[[#This Row],[見積もり]]-TBL_Stationery[[#This Row],[実績]]) -> 
B71: 座席および位置カード | C71: ¥50.00 | E71: =IF(OR(TBL_Stationery[[#This Row],[見積もり]]="",TBL_Stationery[[#This Row],[実績]]=""),"",TBL_Stationery[[#This Row],[見積もり]]-TBL_Stationery[[#This Row],[実績]]) -> 
B72: メニューカード | C72: ¥50.00 | E72: =IF(OR(TBL_Stationery[[#This Row],[見積もり]]="",TBL_Stationery[[#This Row],[実績]]=""),"",TBL_Stationery[[#This Row],[見積もり]]-TBL_Stationery[[#This Row],[実績]]) -> 
B73: お礼状 | C73: ¥50.00 | E73: =IF(OR(TBL_Stationery[[#This Row],[見積もり]]="",TBL_Stationery[[#This Row],[実績]]=""),"",TBL_Stationery[[#This Row],[見積もり]]-TBL_Stationery[[#This Row],[実績]]) -> 
B74: 送料 | C74: ¥50.00 | E74: =IF(OR(TBL_Stationery[[#This Row],[見積もり]]="",TBL_Stationery[[#This Row],[実績]]=""),"",TBL_Stationery[[#This Row],[見積もり]]-TBL_Stationery[[#This Row],[実績]]) -> 
B75: 雑費 | C75: ¥100.00 | E75: =IF(OR(TBL_Stationery[[#This Row],[見積もり]]="",TBL_Stationery[[#This Row],[実績]]=""),"",TBL_Stationery[[#This Row],[見積もり]]-TBL_Stationery[[#This Row],[実績]]) -> 
B76: 文房具の合計 | C76: =SUBTOTAL(109,TBL_Stationery[見積もり]) -> ¥500.00 | D76: =SUBTOTAL(109,TBL_Stationery[実績]) -> ¥0.00 | E76: =TBL_Stationery[[#Totals],[見積もり]]-TBL_Stationery[[#Totals],[実績]] -> ¥500.00
B79: 結婚指輪 | C79: 見積もり | D79: 実績 | E79: 差額
B80: 結婚指輪 | C80: ¥1,000.00 | E80: =IF(OR(TBL_WeddingRings[[#This Row],[見積もり]]="",TBL_WeddingRings[[#This Row],[実績]]=""),"",TBL_WeddingRings[[#This Row],[見積もり]]-TBL_WeddingRings[[#This Row],[実績]]) -> 
B81: リング アクセサリ | C81: ¥100.00 | E81: =IF(OR(TBL_WeddingRings[[#This Row],[見積もり]]="",TBL_WeddingRings[[#This Row],[実績]]=""),"",TBL_WeddingRings[[#This Row],[見積もり]]-TBL_WeddingRings[[#This Row],[実績]]) -> 
B82: 結婚指輪の合計 | C82: =SUBTOTAL(109,TBL_WeddingRings[見積もり]) -> ¥1,100.00 | D82: =SUBTOTAL(109,TBL_WeddingRings[実績]) -> ¥0.00 | E82: =TBL_WeddingRings[[#Totals],[見積もり]]-TBL_WeddingRings[[#Totals],[実績]] -> ¥1,100.00
B85: 交通費 | C85: 見積もり | D85: 実績 | E85: 差額
B86: メイン レンタカー | C86: ¥100.00 | E86: =IF(OR(TBL_Transportation[[#This Row],[見積もり]]="",TBL_Transportation[[#This Row],[実績]]=""),"",TBL_Transportation[[#This Row],[見積もり]]-TBL_Transportation[[#This Row],[実績]]) -> 
B87: ゲスト レンタカー | C87: ¥100.00 | E87: =IF(OR(TBL_Transportation[[#This Row],[見積もり]]="",TBL_Transportation[[#This Row],[実績]]=""),"",TBL_Transportation[[#This Row],[見積もり]]-TBL_Transportation[[#This Row],[実績]]) -> 
B88: 郊外のお客様向け交通 | C88: ¥100.00 | E88: =IF(OR(TBL_Transportation[[#This Row],[見積もり]]="",TBL_Transportation[[#This Row],[実績]]=""),"",TBL_Transportation[[#This Row],[見積もり]]-TBL_Transportation[[#This Row],[実績]]) -> 
B89: バレー パーキング | C89: ¥50.00 | E89: =IF(OR(TBL_Transportation[[#This Row],[見積もり]]="",TBL_Transportation[[#This Row],[実績]]=""),"",TBL_Transportation[[#This Row],[見積もり]]-TBL_Transportation[[#This Row],[実績]]) -> 
B90: 雑費 | C90: ¥100.00 | E90: =IF(OR(TBL_Transportation[[#This Row],[見積もり]]="",TBL_Transportation[[#This Row],[実績]]=""),"",TBL_Transportation[[#This Row],[見積もり]]-TBL_Transportation[[#This Row],[実績]]) -> 
B91: 交通費の合計 | C91: =SUBTOTAL(109,TBL_Transportation[見積もり]) -> ¥450.00 | D91: =SUBTOTAL(109,TBL_Transportation[実績]) -> ¥0.00 | E91: =TBL_Transportation[[#Totals],[見積もり]]-TBL_Transportation[[#Totals],[実績]] -> ¥450.00
